bitfinex-derivatives/quotes_SOLF0:USTF0_20240904
["timestamp","ask_amount","ask_price","bid_price","bid_amount"]
[1725483526465,8.03,134.0,133.97,3.7323]
[1725483526668,11.68729945,134.02,133.97,3.7323]
[1725483526864,3.7313,134.01,133.97,3.7323]
[1725483527464,0.05661061,134.0,133.98,0.05292325]
[1725483530666,8.03,133.99,133.98,0.05292325]
[1725483531071,11.7618,133.99,133.98,0.05292325]
[1725483538280,3.78821061,134.0,133.98,0.05292325]
[1725483538878,3.7318,133.99,133.98,0.05292325]
[1725483539577,8.08661061,134.0,133.98,0.05292325]
[1725483540281,8.08661061,134.0,133.98,3.78482325]
[1725483541983,0.05661061,134.0,133.99,3.7318]
[1725483543283,0.05661061,134.0,133.98,3.78482325]
[1725483544276,0.05661061,134.0,133.99,3.7318]
[1725483547288,0.05661061,134.0,133.99,5.0987]
[1725483547685,3.7308,134.03,134.01,3.7312]
[1725483548593,3.77358186,134.03,134.01,3.78201104]
[1725483549991,0.04278186,134.03,134.01,3.78201104]
[1725483552794,0.04278186,134.03,134.02,3.7309]
[1725483565097,8.07278186,134.03,134.01,3.78181104]
[1725483566305,11.80348186,134.03,134.01,3.78181104]
[1725483566807,3.7309,134.02,134.01,0.05081104]
[1725483569005,11.7609,134.02,134.01,0.05081104]
[1725483569512,8.03,134.02,133.96,3.7325]
[1725483569704,8.03,133.99,133.96,3.7325]
[1725483570200,8.03,133.97,133.93,1.3665]
[1725483570410,8.03,133.95,133.94,0.05544332]
[1725483570604,3.7329,133.95,133.94,0.05544332]
[1725483570796,11.7629,133.95,133.94,0.05544332]
[1725483571607,3.7329,133.95,133.94,0.05544332]
[1725483571909,11.7629,133.95,133.94,0.05544332]
[1725483573910,0.05602829,133.96,133.94,0.05544332]
[1725483575301,3.78862829,133.96,133.94,0.05544332]
[1725483578810,3.7329,133.95,133.94,0.05544332]
[1725483580309,11.7629,133.95,133.94,0.05544332]
[1725483588322,3.7329,133.95,133.94,0.05544332]
[1725483589021,11.7629,133.95,133.94,0.05544332]
[1725483602429,11.7629,133.95,133.88,5.1614]
[1725483602430,8.03,133.95,133.88,5.1614]
[1725483602627,8.03,133.9,133.83,9.4686]
[1725483602824,8.03,133.9,133.84,1.4311]
[1725483603028,8.03,133.9,133.87,3.7349]
[1725483603227,7.472,133.98,133.88,8.03]
[1725483603428,0.04763547,133.94,133.92,0.05508275]
[1725483603730,3.78103547,133.94,133.92,0.05508275]
[1725483604129,11.81103547,133.94,133.92,0.05508275]
[1725483604334,11.76125123,133.94,133.92,0.05508275]
[1725483604534,3.7334,133.93,133.92,0.05508275]
[1725483610641,11.81093547,133.94,133.92,0.05508275]
[1725483610834,0.04763547,133.94,133.92,0.05508275]
[1725483611030,0.04763547,133.94,133.93,3.7334]
[1725483611237,231.64568573,134.1,133.92,8.08508275]
[1725483611437,8.03,134.0,133.94,8.03]
[1725483611642,15.55229194,134.0,133.94,8.03]
[1725483611843,11.7615,134.0,133.94,11.75134574]
[1725483612049,1.3595,134.05,133.94,11.75134574]
[1725483612050,8.03,134.01,133.94,11.75134574]
[1725483612252,0.05367749,133.99,133.97,3.7321]
[1725483612939,0.05367749,133.99,133.98,3.732]
[1725483613551,8.03,134.03,134.0,3.7313]
[1725483614045,8.03,134.03,133.98,9.4479]
[1725483614248,11.7601,134.05,133.98,9.4479]
[1725483614447,11.7601,134.05,134.0,8.03]
[1725483614448,8.03,134.05,134.0,8.03]
[1725483614749,0.04772326,134.03,134.02,3.7309]
[1725483616846,0.04772326,134.03,134.01,8.03]
[1725483616847,3.64568573,134.1,134.05,3.7301]
[1725483617156,3.7832141,134.13,134.05,8.03]
[1725483617352,8.03,134.12,134.07,3.7293]
[1725483617544,11.7584,134.12,134.06,3.67611384]
[1725483617746,8.03,134.12,134.06,3.67611384]
[1725483618051,20.04,134.12,134.08,0.05003889]
[1725483618249,3.7286,134.11,134.09,0.04837727]
[1725483618446,20.04,134.12,134.09,0.04837727]
[1725483619049,20.04,134.12,134.0,20.04]
[1725483619050,20.04,134.1,133.71,23.1447385]
[1725483619251,20.04,134.07,133.98,20.04]
[1725483619650,20.04,134.07,134.03,3.7304]
[1725483620155,0.04837727,134.06,134.04,0.05571957]
[1725483621452,3.77817727,134.06,134.04,0.05571957]
[1725483623057,0.04837727,134.06,134.04,0.05571957]
[1725483623543,20.04,134.09,134.05,3.7301]
[1725483623749,3.78068388,134.12,134.04,0.05571957]
[1725483623750,20.04,134.11,134.04,1.45821957]
[1725483624456,23.82991938,134.11,134.04,1.45821957]
[1725483625047,3.7288,134.1,134.06,3.7296]
[1725483625251,3.7288,134.1,134.07,0.05161781]
[1725483625657,3.7288,134.1,134.07,3.78101781]
[1725483625859,23.7685,134.11,134.07,3.78101781]
[1725483626556,20.04,134.11,134.08,3.7291]
[1725483626761,3.7282,134.12,134.08,3.7291]
[1725483629260,3.7282,134.12,134.09,3.729]
[1725483629861,3.7282,134.12,134.08,3.729]
[1725483633363,3.7284,134.11,134.07,3.78101781]
[1725483634861,3.7288,134.1,134.07,3.78101781]
[1725483636065,3.69478901,134.14,134.07,0.05161781]
[1725483636267,20.04,134.15,134.08,1.3365]
[1725483636470,3.79224789,134.14,134.1,0.05647924]
[1725483636657,3.7281,134.13,134.1,3.78517924]
[1725483636858,20.04,134.17,134.1,0.05647924]
[1725483637058,3.76165923,134.16,134.1,0.05647924]
[1725483637366,3.7273,134.15,134.1,0.05647924]
[1725483637963,3.7273,134.15,134.12,3.7281]
[1725483640467,3.7272,134.16,134.12,3.7281]
[1725483640673,3.7272,134.16,134.13,0.05584303]
[1725483641266,20.04,134.15,134.13,0.05584303]
[1725483641465,20.04,134.14,134.13,0.05584303]
[1725483641667,3.7281,134.13,134.08,1.3365]
[1725483641865,3.7281,134.13,134.09,3.7288]
[1725483642368,3.7281,134.13,134.1,3.7286]
[1725483642870,3.77538832,134.13,134.1,3.77963117]
[1725483644269,3.77538832,134.13,134.1,0.05103117]
[1725483645073,3.77538832,134.13,134.1,3.77963117]
[1725483648579,3.77538832,134.13,134.1,0.05103117]
[1725483649478,3.7281,134.12,134.1,0.05103117]
[1725483653780,3.7284,134.11,134.1,0.05103117]
[1725483659180,11.7484,134.11,134.1,0.05103117]
[1725483659986,3.7295,134.08,134.03,2.6483]
[1725483660188,3.7295,134.08,134.05,3.7299]
[1725483661075,0.0512823,134.08,134.06,3.7298]
[1725483661281,8.0712823,134.08,134.05,0.04773103]
[1725483661582,3.7298,134.06,134.05,0.04773103]
[1725483663884,0.0512823,134.08,134.05,0.04773103]
[1725483664684,3.7805823,134.08,134.05,0.04773103]
[1725483665185,3.7296,134.07,134.05,3.77763103]
[1725483665383,0.0512823,134.08,134.05,3.77763103]
[1725483665890,3.7806823,134.08,134.05,3.77763103]
[1725483667190,3.7806823,134.08,134.05,0.04773103]
[1725483667191,8.0712823,134.08,134.05,0.04773103]
[1725483667782,3.7298,134.06,134.05,0.04773103]
[1725483670688,11.7498,134.06,134.05,0.04773103]
[1725483671288,3.7298,134.06,134.05,0.04773103]
[1725483675087,0.0512823,134.08,134.05,0.04773103]
[1725483675295,0.0512823,134.08,134.07,8.02]
[1725483675603,11.67495112,134.13,134.07,8.02]
[1725483676691,0.05118821,134.11,134.09,3.78476995]
[1725483681296,3.77968821,134.11,134.09,0.05576995]
[1725483683398,0.05118821,134.11,134.09,0.05576995]
[1725483683693,0.05118821,134.11,134.09,8.07576995]
[1725483683898,0.05118821,134.11,134.1,3.7287]
[1725483697808,8.02,134.14,134.09,0.05576995]
[1725483698306,11.7483,134.12,134.09,0.05576995]
[1725483699511,11.7483,134.12,134.09,3.78446995]
[1725483699906,3.7284,134.11,134.09,3.78446995]
[1725483701012,11.7483,134.12,134.09,3.78446995]
[1725483702108,3.7284,134.11,134.09,3.78446995]
[1725483702608,3.7284,134.11,134.09,0.05576995]
[1725483703809,3.7284,134.11,134.09,3.78466995]
[1725483704014,11.7483,134.12,134.09,3.78466995]
[1725483704211,8.02,134.15,134.09,0.05576995]
[1725483704408,8.02,134.15,134.11,3.7282]
[1725483704409,3.7278,134.14,134.11,3.7282]
[1725483704604,3.7278,134.14,134.09,8.07576995]
[1725483707216,3.7274,134.15,134.09,8.07576995]
[1725483707518,8.02,134.16,134.1,8.02]
[1725483707720,8.02,134.16,134.12,3.7279]
[1725483708019,11.7473,134.16,134.13,0.05263696]
[1725483708818,11.7475,134.15,134.13,0.05263696]
[1725483709018,8.02,134.15,134.13,0.05263696]
[1725483710424,3.7276,134.14,134.13,0.05263696]
[1725483711125,3.7271,134.16,134.13,0.05263696]
[1725483711320,11.8254582,134.17,134.13,0.05263696]
[1725483711628,8.02,134.17,134.13,0.05263696]
[1725483711821,3.75251897,134.16,134.13,0.05263696]
[1725483713528,3.7273,134.15,134.13,0.05263696]
[1725483714023,11.7473,134.15,134.13,0.05263696]
[1725483714622,3.7276,134.14,134.13,0.05263696]
[1725483715828,11.7476,134.14,134.13,0.05263696]
[1725483716331,3.7286,134.11,134.07,3.7294]
[1725483716623,3.7289,134.1,134.07,3.7294]
[1725483716821,8.02,134.1,134.06,1.3291]
[1725483717222,3.78537394,134.09,134.07,0.05094754]
[1725483717919,8.02,134.08,134.07,0.05094754]
[1725483718825,11.7493,134.08,134.07,0.05094754]
[1725483720927,3.78527394,134.09,134.07,0.05094754]
[1725483721128,0.05617394,134.09,134.07,0.05094754]
[1725483722831,3.78517394,134.09,134.07,0.05094754]
[1725483724227,11.7493,134.08,134.07,0.05094754]
[1725483728125,3.73,134.06,134.03,3.7305]
[1725483728328,3.73,134.06,134.02,3.7308]
[1725483729229,0.05644554,134.05,134.03,0.05690861]
[1725483729627,0.05644554,134.05,134.04,3.7304]
[1725483731829,0.05644554,134.05,134.03,3.78740861]
[1725483732435,3.78654554,134.05,134.03,0.05690861]
[1725483733439,3.78654554,134.05,134.03,3.78750861]
[1725483733929,0.05644554,134.05,134.03,3.78750861]
[1725483738040,3.78664554,134.05,134.03,0.05690861]
[1725483739045,3.78664554,134.05,134.03,3.78750861]
[1725483741242,11.80664554,134.05,134.03,0.05690861]
[1725483742342,11.80664554,134.05,134.03,3.78750861]
[1725483745244,8.07644554,134.05,134.03,3.78750861]
[1725483745446,0.05644554,134.05,134.03,3.78750861]
[1725483746549,3.78654554,134.05,134.03,3.78750861]
[1725483747043,11.7504,134.04,134.03,0.05690861]
[1725483749842,3.7314,134.01,133.98,3.7319]
[1725483750038,54.49,134.07,133.97,1.3455]
[1725483750039,8.02,134.0,133.97,1.3455]
[1725483750646,8.02,133.99,133.96,97.29355873]
[1725483750846,8.02,133.98,133.96,0.05208381]
[1725483751246,11.7523,133.97,133.96,0.05208381]
[1725483760956,30.43,133.97,133.87,2.7535]
[1725483761157,8.02,133.91,133.87,2.7535]
[1725483761559,8.02,133.91,133.88,3.7348]
[1725483761961,8.02,133.91,133.88,3.78372264]
[1725483761962,8.07117411,133.91,133.88,3.78372264]
[1725483762161,11.80537411,133.91,133.88,0.04892264]
[1725483762357,8.07117411,133.91,133.88,0.04892264]
[1725483763063,3.7344,133.9,133.88,0.04892264]
[1725483763863,8.07117411,133.91,133.88,0.04892264]
[1725483764262,8.07117411,133.91,133.88,3.78352264]
[1725483764857,8.07117411,133.91,133.88,3.78372264]
[1725483765063,8.02,133.9,133.88,0.04892264]
[1725483765458,8.02,133.9,133.89,3.7345]
[1725483767063,0.05117411,133.91,133.89,3.7345]
[1725483767264,8.07117411,133.91,133.89,3.7345]
[1725483767958,8.07117411,133.91,133.9,3.7343]
[1725483768162,0.05117411,133.91,133.9,3.7343]
[1725483776668,1.3951,133.96,133.89,1.3539]
[1725483776868,8.02,133.95,133.89,1.3539]
[1725483777665,0.05326335,133.93,133.91,0.05386325]
[1725483779378,0.05326335,133.93,133.92,3.7337]
[1725483785376,0.05326335,133.93,133.92,5.1765]
[1725483795285,0.05326335,133.93,133.92,3.7337]
[1725483795489,8.07326335,133.93,133.92,3.7337]
[1725483802088,11.80666335,133.93,133.91,0.05386325]
[1725483802295,8.02,133.92,133.91,0.05386325]
[1725483802993,11.7537,133.92,133.91,0.05386325]
[1725483804794,3.735,133.88,133.79,7.4746]
[1725483804996,8.02,133.86,133.81,1.4062]
[1725483805494,8.02,133.86,133.84,3.7357]
[1725483805694,8.06790075,133.86,133.84,3.79025357]
[1725483807206,0.04790075,133.86,133.85,3.7357]
[1725483818815,8.06790075,133.86,133.85,3.7357]
[1725483819117,8.06790075,133.86,133.84,3.79035357]
[1725483819311,8.06790075,133.86,133.84,0.05455357]
[1725483819813,8.06790075,133.86,133.84,3.79035357]
[1725483826415,11.80340075,133.86,133.84,0.05455357]
[1725483826614,8.02,133.85,133.84,0.05455357]
[1725483828121,11.7557,133.85,133.84,0.05455357]
[1725483828421,8.02,133.85,133.81,1.4062]
[1725483828617,8.02,133.82,133.81,1.4062]
[1725483829316,8.02,133.82,133.73,7.4779]
[1725483829626,0.04986172,133.79,133.76,0.04897143]
[1725483829920,0.04892184,133.79,133.76,0.0536537]
[1725483830320,0.04892184,133.79,133.76,8.0736537]
[1725483831424,0.04892184,133.79,133.78,3.7376]
[1725483837327,57.1479,133.87,133.78,3.7376]
[1725483837328,1.3156,133.87,133.83,3.7361]
[1725483837524,8.02,133.87,133.82,3.71542831]
[1725483837731,8.02,133.87,133.81,8.02]
[1725483838025,8.02,133.87,133.83,3.7361]
[1725483838214,8.02,133.87,133.84,20.64286493]
[1725483838215,11.7552,133.87,133.84,20.64286493]
[1725483838415,11.80871174,133.87,133.85,20.64286493]
[1725483838617,11.80871174,133.87,133.86,20.64286493]
[1725483839023,11.80871174,133.87,133.86,38.24875382]
[1725483842329,3.7355,133.86,133.84,0.05093496]
[1725483842518,8.02,133.85,133.84,0.05093496]
[1725483842722,8.02,133.85,133.84,38.28274689]
[1725483843324,8.02,133.85,133.79,112.54394916]
[1725483843524,8.02,133.83,133.81,3.7366]
[1725483844025,8.02,133.83,133.79,111.23244916]
[1725483844225,0.04743299,133.82,133.8,0.05122941]
[1725483844921,8.02,133.81,133.8,0.05122941]
[1725483845925,11.7568,133.81,133.8,0.05122941]
[1725483846725,8.02,133.81,133.8,0.05122941]
[1725483848129,11.7568,133.81,133.8,0.05122941]
[1725483852141,15.4284998,133.81,133.8,0.05122941]
[1725483858740,0.04743299,133.82,133.8,0.05122941]
[1725483860348,0.04743299,133.82,133.81,3.7368]
[1725483867755,8.02,133.86,133.84,3.7359]
[1725483868752,8.07212681,133.86,133.84,3.79136348]
[1725483868952,0.05212681,133.86,133.84,3.79136348]
[1725483869252,8.07212681,133.86,133.85,3.7357]
[1725483875055,8.07212681,133.86,133.84,3.79126348]
[1725483877061,11.80752681,133.86,133.84,3.79126348]
[1725483878560,11.80752681,133.86,133.84,0.05546348]
[1725483880955,11.7557,133.85,133.84,0.05546348]
[1725483886954,0.05212681,133.86,133.84,0.05546348]
[1725483887349,0.05212681,133.86,133.85,3.7357]
[1725483887753,0.05212681,133.86,133.84,0.05546348]
[1725483889356,0.05212681,133.86,133.84,3.79126348]
[1725483889555,3.7357,133.85,133.84,0.05546348]
[1725483889756,8.07212681,133.86,133.84,0.05546348]
[1725483890161,11.80772681,133.86,133.84,0.05546348]
[1725483890856,8.07212681,133.86,133.84,0.05546348]
[1725483891059,8.02,133.85,133.84,0.05546348]
[1725483893465,11.7557,133.85,133.84,0.05546348]
[1725483896472,30.43,133.85,133.73,3.7188971]
[1725483896663,8.02,133.78,133.75,1.3172]
[1725483897170,8.02,133.78,133.76,3.738]
[1725483897362,8.06974404,133.78,133.76,3.78781467]
[1725483899769,0.04974404,133.78,133.76,3.78781467]
[1725483900768,11.80754404,133.78,133.76,0.04981467]
[1725483904162,8.06974404,133.78,133.76,0.04981467]
[1725483905071,8.06974404,133.78,133.76,3.78791467]
[1725483907162,0.04974404,133.78,133.77,3.7379]
[1725483908067,8.02,133.82,133.79,3.7372]
[1725483908770,11.7567,133.82,133.79,3.7372]
[1725483909077,11.81398098,133.82,133.8,3.737]
[1725483909671,3.79398098,133.82,133.8,3.737]
[1725483909878,0.05728098,133.82,133.81,3.7368]
[1725483910772,8.02,133.88,133.81,8.02]
[1725483910972,8.02,133.88,133.82,8.02]
[1725483911274,11.7551,133.88,133.84,3.7359]
[1725483911471,8.02,133.88,133.84,3.7359]
[1725483911668,0.04894112,133.87,133.85,0.05351104]
[1725483911976,8.02,133.86,133.85,0.05351104]
[1725483912374,15.43177656,133.86,133.85,0.05351104]
[1725483912570,11.69637656,133.86,133.81,3.7367]
[1725483912874,8.02,133.83,133.81,3.7367]
[1725483913682,8.07730511,133.83,133.81,3.79208777]
[1725483913980,0.05730511,133.83,133.81,3.79208777]
[1725483914377,0.05730511,133.83,133.82,3.7365]
[1725483914874,0.05730511,133.83,133.81,0.05538777]
[1725483915476,0.05730511,133.83,133.81,3.79208777]
[1725483918785,0.05730511,133.83,133.82,3.7365]
[1725483920385,0.05730511,133.83,133.81,3.79198777]
[1725483930392,0.05730511,133.83,133.82,3.7365]
[1725483931692,3.76495044,133.86,133.82,3.7365]
[1725483931693,23.8094,133.92,133.82,8.02]
[1725483931891,8.02,133.9,133.83,8.02]
[1725483932087,1.3994,133.92,133.85,8.02]
[1725483932295,8.02,133.91,133.86,1.3394]
[1725483932595,8.02,133.91,133.87,3.735]
[1725483932796,3.78494947,133.9,133.88,0.05169605]
[1725483932996,3.78494947,133.9,133.88,3.78649605]
[1725483933595,0.05064947,133.9,133.89,3.7345]
[1725483935497,335.0,134.05,133.89,8.02]
[1725483935692,8.02,133.96,133.89,8.02]
[1725483935888,8.02,133.96,133.9,8.02]
[1725483936091,11.7528,133.96,133.92,3.7335]
[1725483936596,8.07102605,133.95,133.93,0.05657166]
[1725483936902,11.80402605,133.95,133.93,0.04851195]
[1725483937587,3.7332,133.94,133.93,0.04851195]
[1725483938499,11.80402605,133.95,133.93,0.04851195]
[1725483943195,3.78402605,133.95,133.93,0.04851195]
[1725483943400,0.05102605,133.95,133.93,0.04851195]
[1725483944415,8.02,133.94,133.93,0.04851195]
[1725483945805,11.7532,133.94,133.93,0.04851195]
[1725483947603,40.1,133.94,133.82,1.3707]
[1725483947799,8.02,133.9,133.82,2.7936]
[1725483948003,11.7544,133.9,133.87,3.7351]
[1725483948597,11.80719707,133.9,133.88,5.24]
[1725483949311,11.80719707,133.9,133.88,8.9748]
[1725483949312,0.05279707,133.9,133.88,8.9748]
[1725483953810,11.72644212,133.9,133.88,5.24]
[1725483954108,8.07279707,133.9,133.88,5.24]
[1725483954316,3.7345,133.89,133.88,5.24]
[1725483955508,11.80719707,133.9,133.88,5.24]
[1725483957109,3.78719707,133.9,133.88,5.24]
[1725483959009,0.05279707,133.9,133.88,8.9747]
[1725483960324,0.05279707,133.9,133.89,11.7545]
[1725483962510,3.7331,133.95,133.92,3.7337]
[1725483963518,3.7331,133.95,133.92,3.78359391]
[1725483963519,3.78653291,133.95,133.92,3.78359391]
[1725483964821,0.05343291,133.95,133.94,3.7332]
[1725483966715,0.05343291,133.95,133.94,11.7532]
[1725483967014,11.81919348,134.01,133.96,3.7325]
[1725483967422,3.7319,133.99,133.96,3.7325]
[1725483967824,3.78313466,133.99,133.96,3.7881361]
[1725483968818,0.05123466,133.99,133.97,3.7322]
[1725483969010,0.05123466,133.99,133.96,0.0556361]
[1725483969214,0.05123466,133.99,133.96,3.7881361]
[1725483969912,3.78313466,133.99,133.96,3.7881361]
[1725483976923,3.78313466,133.99,133.97,3.75]
[1725483981322,0.05123466,133.99,133.97,3.75]
[1725483981624,11.752,133.98,133.97,3.75]
[1725483986024,11.752,133.98,133.96,0.0556361]
[1725483986025,3.7323,133.97,133.96,0.0556361]
[1725483986221,11.7523,133.97,133.96,0.0556361]
[1725483992432,3.7326,133.96,133.95,4.02]
[1725483992834,11.7526,133.96,133.95,4.02]
[1725483993040,3.7326,133.96,133.95,4.02]
[1725483993239,11.7526,133.96,133.95,4.02]
[1725483994641,3.7326,133.96,133.95,4.02]
[1725483998940,3.7325,133.97,133.95,4.02]
[1725484002348,3.7325,133.97,133.95,7.7528]
[1725484004349,3.7325,133.97,133.95,4.02]
[1725484004649,8.07123466,133.99,133.95,4.02]
[1725484006359,3.7326,133.96,133.95,4.02]
[1725484006753,0.05123466,133.99,133.95,7.7529]
[1725484006953,8.07123466,133.99,133.95,7.7529]
[1725484007356,8.02,133.96,133.95,4.02]
[1725484007750,11.7526,133.96,133.95,4.02]
[1725484008054,3.7326,133.96,133.95,4.02]
[1725484019966,1.5683,133.96,133.95,4.02]
[1725484020173,3.7322,133.98,133.95,7.7529]
[1725484021074,3.7323,133.97,133.95,7.7529]
[1725484023469,0.05123466,133.99,133.96,8.02]
[1725484023670,0.05123466,133.99,133.94,5.26812892]
[1725484023968,3.78303466,133.99,133.96,3.7324]
[1725484024163,3.68652452,134.02,133.94,5.20315826]
[1725484024365,28.38478775,134.08,133.99,8.02]
[1725484024366,3.76792454,134.03,133.99,8.02]
[1725484024562,8.02,134.05,133.99,8.02]
[1725484024769,3.7306,134.04,133.99,8.02]
[1725484025270,0.04989395,134.03,134.0,0.04923647]
[1725484025474,3.78059395,134.03,134.0,3.78053647]
[1725484025877,3.78059395,134.03,134.01,8.02]
[1725484025878,0.04989395,134.03,134.01,8.02]
[1725484026373,0.04989395,134.03,134.02,3.7309]
[1725484043591,0.04989395,134.03,134.02,7.7409]
[1725484048593,0.04989395,134.03,134.02,4.01]
[1725484048791,11.71998655,134.03,134.02,1.8469]
[1725484048993,30.49989395,134.03,134.0,0.04923647]
[1725484049292,11.7512,134.01,134.0,0.04923647]
[1725484051489,3.7312,134.01,134.0,0.04923647]
[1725484051691,11.7512,134.01,134.0,0.04923647]
[1725484051896,15.5124002,134.01,134.0,0.04923647]
[1725484060102,66.2912002,134.01,133.93,1.4417]
[1725484060308,8.02,133.97,133.93,1.4417]
[1725484060799,3.7328,133.96,133.93,1.4417]
[1725484061202,3.78006602,133.96,133.93,1.49372988]
[1725484061402,3.733,133.95,133.93,1.49372988]
[1725484062796,3.77996602,133.96,133.93,5.22692988]
[1725484062998,0.04726602,133.96,133.94,8.02]
[1725484064004,0.04726602,133.96,133.94,11.753]
[1725484068313,3.77986602,133.96,133.94,3.733]
[1725484068515,3.77986602,133.96,133.93,5.22712988]
[1725484068715,0.04726602,133.96,133.93,5.22712988]
[1725484069015,0.04726602,133.96,133.93,3.78542988]
[1725484069619,3.7329,133.95,133.93,0.05202988]
[1725484078527,3.7329,133.95,133.93,3.78542988]
[1725484083729,0.04726602,133.96,133.94,3.7331]
[1725484084030,0.04726602,133.96,133.93,0.05202988]
[1725484084224,0.04726602,133.96,133.94,3.733]
[1725484086227,3.77986602,133.96,133.94,3.733]
[1725484086727,3.77986602,133.96,133.93,3.78542988]
[1725484086922,3.77986602,133.96,133.93,0.05202988]
[1725484088225,0.04726602,133.96,133.93,8.07202988]
[1725484088626,0.04726602,133.96,133.94,1.3853]
[1725484088822,0.04726602,133.96,133.94,2.8033]
[1725484089029,0.04726602,133.96,133.95,1.3686]
[1725484089426,0.04726602,133.96,133.95,5.1015]
[1725484089624,0.04726602,133.96,133.95,13.1215]
[1725484089832,8.02,134.0,133.95,9.3886]
[1725484090033,3.7321,133.98,133.95,1.3686]
[1725484090723,3.78445317,133.98,133.95,5.14924041]
[1725484091733,3.78445317,133.98,133.96,3.7326]
[1725484093833,0.05235317,133.98,133.97,3.7323]
[1725484094035,0.05235317,133.98,133.95,9.43654041]
[1725484094535,0.05235317,133.98,133.96,3.7323]
[1725484096236,0.05235317,133.98,133.97,3.7323]
[1725484107140,0.05235317,133.98,133.96,3.7325]
[1725484107438,0.05235317,133.98,133.95,1.41654041]
[1725484108440,3.78455317,133.98,133.96,3.7326]
[1725484111846,0.05235317,133.98,133.96,3.7326]
[1725484112849,3.78435317,133.98,133.95,5.14934041]
[1725484113244,3.7323,133.97,133.95,5.14934041]
[1725484113445,0.05235317,133.98,133.95,5.14934041]
[1725484114245,3.78455317,133.98,133.95,5.14934041]
[1725484114443,3.78455317,133.98,133.96,3.7326]
[1725484115951,0.05235317,133.98,133.97,3.7323]
[1725484116949,0.05235317,133.98,133.97,11.7523]
[1725484121755,0.05235317,133.98,133.97,3.7323]
[1725484125049,3.78445317,133.98,133.95,9.43654041]
[1725484125250,3.78445317,133.98,133.95,1.41654041]
[1725484125655,3.78445317,133.98,133.95,5.14934041]
[1725484128260,3.7324,133.97,133.95,1.41654041]
[1725484128557,0.05235317,133.98,133.95,1.41654041]
[1725484128958,3.78455317,133.98,133.95,5.14934041]
[1725484129755,3.7324,133.97,133.95,5.14934041]
[1725484130157,0.05235317,133.98,133.95,5.14934041]
[1725484130360,3.78455317,133.98,133.95,5.14934041]
[1725484142771,8.07235317,133.98,133.95,0.04794041]
[1725484143470,3.76306662,133.97,133.95,0.04794041]
[1725484143861,11.78306662,133.97,133.95,0.04794041]
[1725484144271,3.7326,133.96,133.95,0.04794041]
[1725484145767,11.7526,133.96,133.95,0.04794041]
[1725484146561,3.7337,133.92,133.91,98.68616773]
[1725484148269,3.734,133.91,133.9,0.04940043]
[1725484150565,11.754,133.91,133.9,0.04940043]
[1725484154676,3.734,133.91,133.9,0.04940043]
[1725484154879,11.754,133.91,133.9,0.04940043]
[1725484156079,3.734,133.91,133.9,0.04940043]
[1725484156278,0.05191286,133.93,133.9,0.04940043]
[1725484156480,0.05191286,133.93,133.9,3.78350043]
[1725484158182,3.78551286,133.93,133.9,3.78350043]
[1725484158382,0.05191286,133.93,133.91,3.734]
[1725484158579,0.05191286,133.93,133.9,8.06940043]
[1725484158783,0.05191286,133.93,133.92,3.7337]
[1725484158985,8.02,133.98,133.91,8.02]
[1725484159780,3.7325,133.97,133.93,3.7332]
[1725484159987,0.05554131,133.96,133.93,3.78905754]
[1725484161780,0.05554131,133.96,133.94,3.7331]
[1725484162481,0.05554131,133.96,133.95,3.7329]
[1725484162683,8.02,134.02,133.95,9.4087]
[1725484163089,3.7316,134.0,133.97,3.7321]
[1725484163694,3.7316,134.0,133.97,3.78558422]
[1725484164598,11.7513,134.01,133.97,3.78558422]
[1725484164786,11.7513,134.01,133.98,3.732]
[1725484165293,11.7511,134.02,133.97,0.05348422]
[1725484166091,11.7511,134.02,133.98,3.7318]
[1725484166894,11.7511,134.02,133.99,3.7317]
[1725484168495,3.73544341,134.05,133.98,8.02]
[1725484168700,8.02,134.04,134.0,0.05156279]
[1725484169096,11.7505,134.04,134.01,3.7312]
[1725484170992,11.7505,134.04,134.01,3.7311]
[1725484173100,3.7305,134.04,134.01,3.7311]
[1725484173298,11.7505,134.04,134.01,3.7311]